Cogmind - Beta 13 @@@ ROGUE MODE // 2024.04.25 @ 15:42:07 Player: ferbs Result: Destroyed by as-15342 with Assembled Heavy Rifle Performance ------------- Evolutions (0) 0 Regions Visited (2) 400 Robots Destroyed (16) 80 Value Destroyed (251) 251 Prototype IDs (0) 0 Alien Tech Used (0) 0 Bonus (0) 0 TOTAL SCORE: 731 Bonus ------- None Cogmind --------- Core Integrity 0/250 Matter 300/300 Energy 160/160 System Corruption 15% Temperature Hot (282) Movement Walking (120) Location -10/Mines Parts ------- > --- POWER (1) -------- Light Nuclear Core > --- PROPULSION (2) --- Aluminum Leg Flexi-carbon Leg > --- UTILITY (2) ------ Small Storage Unit > --- WEAPON (2) ------- Particle Gun Particle Gun > --- INVENTORY (8) ---- Improved Ion Engine Aluminum Leg Aluminum Leg VTOL Module VTOL Module VTOL Module VTOL Module Peak State ------------ > --- POWER ------------ Light Nuclear Core > --- PROPULSION ------- Aluminum Leg Flexi-carbon Leg > --- UTILITY ---------- Small Storage Unit > --- WEAPON ----------- Particle Gun Particle Gun > --- INVENTORY -------- Improved Ion Engine Aluminum Leg Aluminum Leg VTOL Module VTOL Module VTOL Module VTOL Module [Rating: 15] Favorites ----------- Power Ion Engine Engine Ion Engine Power Core Light Nuclear Core Propulsion Light Treads Treads Light Treads Leg Aluminum Leg Flight Unit VTOL Module Utility Small Storage Unit Storage Small Storage Unit Processor Visual Processing Unit Protection Power Shielding Weapon Particle Gun Energy Gun Particle Gun Ballistic Gun Assault Rifle Ballistic Cannon Light Cannon Build | -11 -10 -10 ------- Run | Yrd Mat Min Slots Evolved . | . . . Power . | . . . Propulsion . | . . . Utility . | . . . Weapon . | . . . Parts Attached 28 | 4 17 7 Power 4 | 1 2 1 Engine 3 | 1 2 . Core 1 | . . 1 Reactor . | . . . Propulsion 9 | 2 4 3 Treads 2 | 2 . . Leg 5 | . 2 3 Wheel . | . . . Hover . | . . . Flight 2 | . 2 . Utility 7 | 1 5 1 Device . | . . . Storage 4 | 1 2 1 Processor 2 | . 2 . Hackware . | . . . Protection 1 | . 1 . Artifact . | . . . Weapon 8 | . 6 2 Energy Gun 6 | . 4 2 Energy Cannon . | . . . Ballistic Gun 1 | . 1 . Ballistic Cannon 1 | . 1 . Launcher . | . . . Special Weapon . | . . . Impact Weapon . | . . . Slashing Weapon . | . . . Piercing Weapon . | . . . Special Melee Weapon . | . . . Unidentified Prototypes . | . . . Corrupted Parts 1 | . . 1 System Corruption 3 | . . 3 Parts Lost 7 | . 2 5 Power 2 | . 1 1 Propulsion 1 | . . 1 Utility 1 | . . 1 Weapon 3 | . 1 2 Highest Loss Streak 5 | . 2 5 To Critical Strikes . | . . . Average Slot Usage (%) 90 | . 93 84 Engine 9 | . 11 5 Core 1 | . . 4 Treads 12 | . 19 . Leg 14 | . 7 28 Flight 1 | . 1 . Storage 14 | . 14 14 Processor 5 | . 6 5 Protection 4 | . 6 . Energy Gun 18 | . 14 25 Ballistic Gun 1 | . 2 . Ballistic Cannon 6 | . 9 . Naked Turns . | . . . Heaviest Build 53 | 10 53 21 Greatest Support 40 | 40 40 30 Greatest Overweight (x) 6 | . 6 1 Average Overweight (x) . | . . . Largest Inventory Capacity 20 | 8 20 8 Average Capacity 11 | 6 14 8 Most Carried 20 | 6 20 8 Average Carried 7 | 3 8 7 Final Capacity 8 | 8 8 8 Final Carried 8 | 6 8 7 Class Distribution -------------------- 90% | Mutant 9% | Scavenger-Mutant Dominant Class ---------------- Mutant | -10/Materials Mutant | -10/Mines Resources | -11 -10 -10 ----------- Run | Yrd Mat Min Matter Collected 623 | 240 244 139 Remotely . | . . . Salvage Created 337 | . 308 29 Parts 38 | . 38 . Haulers Intercepted . | . . . Recyclers Shooed . | . . . Parts Field Recycled . | . . . Retrieved Matter . | . . . Parts Self-Destructed . | . . . Prevented . | . . . Kills | -11 -10 -10 ------- Run | Yrd Mat Min Combat Hostiles Destroyed 13 | . 9 4 Guns 8 | . 4 4 Cannons 5 | . 5 . Classes Destroyed 7 | . 6 1 Worker 3 | . 3 . Builder 1 | . 1 . Recycler 1 | . 1 . Watcher 2 | . 2 . Swarmer 6 | . 6 . Grunt 3 | . 3 . Assembled 4 | . . 4 Best Kill Streak 4 | . 4 3 Combat Bots Only 3 | . 3 3 Max Kills in Single Turn 2 | . 2 1 Gunslinging . | . . . Exploded . | . . . Melee . | . . . Uniques/NPCs Destroyed . | . . . Combat | -11 -10 -10 -------- Run | Yrd Mat Min Hostile Shots Fired 136 | . 74 62 Missed 36 | . 20 16 Damage Taken 1369 | . 580 789 Core 260 | . 99 161 Absorbed by Shields . | . . . Core Remaining (%) 100 | 100 . . Volleys Fired 58 | . 38 20 Largest 2 | . 2 2 Hottest 130 | . 130 130 Shots Fired 104 | . 66 38 Gun 74 | . 36 38 Cannon 30 | . 30 . Launcher . | . . . Special . | . . . Kinetic 32 | . 32 . Thermal 54 | . 16 38 Explosive . | . . . Electromagnetic 18 | . 18 . Robot Hit Streak 5 | . 5 3 Robot Miss Streak 7 | . 4 7 Penetration Max . | . . . Secondary Targets 2 | . 1 1 Max Gunslinging Chain 1 | . 1 1 Shots Hit Robots 47 | . 33 14 Core Hits 27 | . 18 9 Critical Kills . | . . . Critical Parts Destroyed . | . . . Critical Strikes . | . . . Melee Attacks . | . . . Impact . | . . . Slashing . | . . . Piercing . | . . . Sneak Attacks . | . . . Combat Hostiles . | . . . Follow-up Attacks . | . . . Damage Inflicted 819 | . 617 202 Guns 487 | . 285 202 Cannons 332 | . 332 . Explosions . | . . . Melee . | . . . Ramming . | . . . Kinetic 355 | . 355 . Thermal 334 | . 132 202 Explosive . | . . . Electromagnetic 130 | . 130 . Impact . | . . . Slashing . | . . . Piercing . | . . . Highest Corruption 15 | . . 15 Average Corruption 12 | . . 12 Corruption Purged . | . . . Corruption Blocked . | . . . Effects 9 | . . 9 Message Errors 2 | . . 2 Matter Fused 2 | . . 2 Heat Flow Errors 2 | . . 2 Data Loss (major) 3 | . . 3 Overload Shots . | . . . Overflow Damage . | . . . Projectiles . | . . . Explosions . | . . . Melee . | . . . Knockbacks 2 | . 2 . Impact . | . . . Kinetic 1 | . 1 . Secondary 1 | . 1 . Self-Inflicted Damage . | . . . Shots . | . . . Rammed . | . . . Targets Rammed . | . . . Kicked . | . . . Crushed . | . . . Highest Temperature 388 | . 288 388 Average Temperature 124 | . 78 171 Received Heat Transfer 345 | . 231 114 Effects 2 | . . 2 Energy Bleed 1 | . . 1 Matter Decay 1 | . . 1 Siege Activations . | . . . Robots Corrupted . | . . . Combat Hostiles . | . . . Parts Fried . | . . . Impact Corruptions . | . . . Robots Melted . | . . . Combat Hostiles . | . . . Parts Melted . | . . . Heat Transferred 814 | . 296 518 Parts Sabotaged . | . . . Parts Stolen . | . . . Parts Stripped . | . . . Power Chain Reactions . | . . . Alert | -11 -10 -10 ------- Run | Yrd Mat Min Peak Influence 159 | . 159 76 Initial 61 | . . 61 Average 42 | . 50 42 Maximum Alert Level . | . . . Low Security (%) 100 | 100 100 100 Level 1 . | . . . Level 2 . | . . . Level 3 . | . . . Level 4 . | . . . Level 5 . | . . . High Security . | . . . Max Security . | . . . Squads Dispatched . | . . . Investigation . | . . . Extermination . | . . . Reinforcement . | . . . Assault . | . . . Garrison . | . . . Intercept . | . . . Searches Triggered . | . . . Construction Impeded . | . . . Haulers Reinforced . | . . . Active Scanning Responses . | . . . Cargo Convoy Interrupts . | . . . Stealth | -11 -10 -10 --------- Run | Yrd Mat Min Distress Signals 2 | . 2 . Communications Jammed . | . . . Distress Signals . | . . . Times Spotted 32 | . 14 18 Peak Tracking Total 14 | . 5 14 Tactical Retreats 3 | . . 3 Traps | -11 -10 -10 ------- Run | Yrd Mat Min Traps Triggered . | . . . Indirectly . | . . . Trap Hack Attempts . | . . . Triggered . | . . . Disarmed . | . . . Reprogrammed . | . . . Reused . | . . . Traps Extracted . | . . . Installed . | . . . Triggered . | . . . Machines | -11 -10 -10 ---------- Run | Yrd Mat Min Machines Disabled 3 | . 2 1 Max in Single Turn 1 | . 1 1 Machines Repaired . | . . . Machines Dismantled . | . . . Machines Sabotaged . | . . . Overloaded Fab Kills . | . . . Hacking | -11 -10 -10 --------- Run | Yrd Mat Min Machines Accessed 2 | . 2 . Terminals 1 | . 1 . Fabricators . | . . . Repair Stations . | . . . Recycling Units 1 | . 1 . Scanalyzers . | . . . Garrison Access . | . . . Total Hacks 3 | . 3 . Successful 2 | . 2 . Failed 1 | . 1 . Catastrophic . | . . . Database Lockouts . | . . . Manual . | . . . Terminals 2 | . 2 . Fabricators . | . . . Repair Stations . | . . . Recycling Units 1 | . 1 . Scanalyzers . | . . . Garrison Access . | . . . Terminal Hacks 1 | . 1 . Hauler Manifests 1 | . 1 . Fabricator Hacks . | . . . Repair Station Hacks . | . . . Recycling Unit Hacks 1 | . 1 . Retrieve Components 1 | . 1 . Scanalyzer . | . . . Garrison Access Hacks . | . . . Unauthorized Hacks . | . . . Terminals . | . . . Fabricators . | . . . Repair Stations . | . . . Recycling Units . | . . . Scanalyzers . | . . . Garrison Access . | . . . Data Cores Recovered . | . . . Used . | . . . Hacking Detections . | . . . Full Trace Events . | . . . Feedback Events . | . . . Feedback Blocked . | . . . Robot Schematics Acquired . | . . . Robots Built . | . . . Authchips . | . . . Time . | . . . Total Robot Build Rating . | . . . Part Schematics Acquired . | . . . Parts Built . | . . . Authchips . | . . . Time . | . . . Total Part Build Rating . | . . . Parts Repaired . | . . . Time . | . . . Parts Recycled . | . . . Recycled Matter . | . . . Retrieved Matter . | . . . Retrieved Components 2 | . 2 . Parts Scanalyzed . | . . . Part Schematics Acquired . | . . . Parts Damaged . | . . . Bothacking | -11 -10 -10 ------------ Run | Yrd Mat Min Used RIF Installer . | . . . Robots Hacked . | . . . Non-combat . | . . . Combat . | . . . Robot Hacks Applied . | . . . Relay Couplers Released . | . . . Fabnet Peak Effective % . | . . . Robots Rewired . | . . . Allies Hacked . | . . . Hacks Repelled . | . . . Allies | -11 -10 -10 -------- Run | Yrd Mat Min Total Allies . | . . . Largest Group . | . . . Highest-Rated Group . | . . . Highest-Rated Ally . | . . . Total Orders . | . . . Ally Attacks . | . . . Total Damage . | . . . Kills . | . . . Allies Corrupted . | . . . Allies Melted . | . . . Intel | -11 -10 -10 ------- Run | Yrd Mat Min Robot Analysis Total . | . . . Derelict Logs Recovered 2 | . . 2 Drone Launches . | . . . Drone Recoveries . | . . . Exploration | -11 -10 -10 ------------- Run | Yrd Mat Min Turns Passed 1225 | 152 705 368 Spaces Moved 639 | 77 316 246 Core 14 | 14 . . Treads 243 | 63 180 . Legs 373 | . 127 246 Wheels . | . . . Hover . | . . . Flight 9 | . 9 . Fastest Speed 50 | 50 120 120 Average Speed 148 | 140 171 120 Slowest Speed 512 | 160 512 190 Overloaded Moves . | . . . Propulsion Burnouts . | . . . Robots Hopped . | . . . Cave-ins Triggered . | . . . Exploration Rate (%) 33 | 6 57 37 Regions Visited 2 Branch Regions 1 Pre-discovered Areas 3 | . . 3 Known Exits Taken . | . . . Unknown Exits Taken 2 | 1 1 . Scrap Searched 1 | . . 1 Spaces Dug . | . . . Terrain Destroyed . | . . . Melee . | . . . Projectile . | . . . AOE . | . . . Terrain Rammed . | . . . Walls Destroyed . | . . . Machines Disabled . | . . . Actions | -11 -10 -10 --------- Run | Yrd Mat Min Total 818 | 121 418 279 Wait 36 | 31 5 . Move 637 | 76 315 246 Hop . | . . . Pick Up 37 | 10 23 4 Fast Attach 3 | . 3 . Attach 14 | 4 5 5 Detach 2 | . 2 . Swap 11 | . 9 2 Drop 20 | . 18 2 Fire 58 | . 38 20 Melee . | . . . Ram . | . . . Kick . | . . . Crush . | . . . Escape Stasis . | . . . Rewire . | . . . Trap . | . . . Miscellaneous . | . . . Route ------- -11/Scrapyard -10/Materials -10/Mines History --------- Turn | Location | Event 36 | -11/Scrapyard | Discovered new exit (range 14) 153 | -11/Scrapyard | Entered Materials 320 | -10/Materials | Build established: Mutant 581 | -10/Materials | Discovered new exit (range 13) 858 | -10/Materials | Entered Mines 899 | -10/Mines | Learned location of Storage (-8) 976 | -10/Mines | Assembled infested the area 978 | -10/Mines | Core integrity fell below 50% 981 | -10/Mines | Assisted by a Guerilla fighting off Assembled 1032 | -10/Mines | Core integrity fell below 20% 1042 | -10/Mines | System corruption reached 10% 1072 | -10/Mines | Lost 5 parts (1p1n1u2w) 1176 | -10/Mines | Learned location of Zion (-6) 1226 | -10/Mines | Destroyed by as-15342 with Assembled Heavy Rifle Last Messages --------------- Acquired 20 matter. Dropped Sml. Storage Unit. Acquired Corrupted Flexi-carbon Leg. Integrated Corrupted Flexi-carbon Leg (+3). Acquired 10 matter. System corrupted: Substantial component data lost. The unstable cave ceiling collapses. TEZIV1EBGHDF&UGN% K-01 Serf collects debris. System corrupted: Heat flow error (+282). Map ----- +----------------------------------------------------+ | ???????# =##??????# #??###????????????????????? | | ????????#[ ##?????# #?## ##???????????????????? | | ?????????# ##????# ### #???????????????????? | | ????????## #???## ## #???????????????????# | | ???????## ##### #???????????????????# | | ???????# ! != ##################### | | ?????### = %!*=""" | | ?????# %] ####### % "" | | ?????# ########### %"" ###################### | | ?????# ####??# % [ ##???????????????????## | | ?????# ??????# ##???????????????????# | | ?????#???????# #### % #####???????????????? | | ??????????????????# #???????????????? | | ??????????????????# ##### #???????????????? | | ??????????????????## ##???# #???????????????? | | ??????????????????## % #????# #???????????????? | | ??????????????????# ! ##????# #???????????????? | | ??????????????????#% "#????# #???????????????? | | ??????????????????## a#####?# #???????????????? | | ???????????????????#" ### ###?????????????? | | ???????????????????### % #?????????????? | | ?????????????????????#" = #?????????????? | | ?????????????????????####%! ## #?????????????? | | ???????????????????????##%!# # #?????????????? | | ???????????????????##### ### ###???????????? | | ??????????????????## ## @ # %= ?????????? | | ??????????######### % a !% ?????????? | | ?????????## ## ## = ! = !????????? | | ?????????# % =% ##?????????? | | ?????????# ## ] #??????????? | | ?????????# ### # ##??????????? | | ????????## #?# ### # ##???????????? | | ???????## #?## ####??##### ##???????????? | | ???????# " #??### #?????????? #????????????? | | ???????# =!###### #?????????? #????????????? | | ???????## #### %! #???????????#????????????? | | ????????####??# [########????????????????????????? | | ??????????????# #####???????????????????????????? | | ??????????????# #???????????????????????????? | | ??????????????###### #???????????????????????????? | | ?????????????????### ##??????????????????????????? | | ?????????????????# #??????????????????????????? | | ?????????????????# ##??????????????????????????? | | ?????????????????#####???????????????????????????? | | ?????????????????????????????????????????????????? | | ?????????????????????????????????????????????????? | | ?????????????????????????????????????????????????? | | ?????????????????????????????????????????????????? | | ?????????????????????????????????????????????????? | | ?????????????????????????????????????????????????? | +----------------------------------------------------+ Best States ------------- Heat Dissipation 25 Energy Generation 14 Energy Capacity 265 Matter Stores 300 Matter Capacity 300 Sight Range 18 Terrain Scan Density 10 Power Shielding 33 Evasion (%) 55 Recoil Reduction 2 Item Schematics ----------------- None Robot Schematics ------------------ None Fabricated ------------ Nothing Alien Tech Used ----------------- None Achievements -------------- Shopping List System Compromised Challenges ------------ None Game ------ Seed FlakHeatPit Manual? 0 Play Time 00:17:37 Cumulative 2.1 hours Start 2024.04.25 @ 15:16:30 End 2024.04.25 @ 15:42:07 Sessions 1 Manual Loads 0 Difficulty Rogue Special Mode None Game No. 4 Rogue 4 Adventurer 0 Explorer 0 Win Type - Total 0 Types 0/0/0/0/0/0/0/0/0 Lore% 1 Gallery% 5 Achievement% 5 Wizard Run 0 Options --------- Layout 1 ASCII 0 Keyboard 0 Movement Mouse Keybinds 0 Fullscreen 2 Font 32/SmallcapsGlow Map View 50x35 Zoom Use 0% Tactical HUD 0 Map Filters NONE Filters NONE Steam 1 RUN: cf0828f4-a6ce-4445-81d5-712d3778515b